[Event "*** Titled Tuesday Blitz"]
[Site "Chess.com"]
[Date "2020.12.29"]
[Round "2"]
[White "Alekseyviktorovich"]
[Black "Dinamo81"]
[Result "0-1"]
[WhiteElo "2334"]
[BlackElo "2663"]
[TimeControl "180+1"]
[EndTime "10:17:09 PST"]
[Termination "Dinamo81 won by checkmate"]

1. e4 {[%clk 0:02:58.4]} 1... c5 {[%clk 0:02:59.5]} 2. Nf3 {[%clk 0:02:57.4]}
2... e6 {[%clk 0:02:58.5]} 3. d4 {[%clk 0:02:56.9]} 3... cxd4 {[%clk 0:02:58.2]}
4. Nxd4 {[%clk 0:02:57]} 4... a6 {[%clk 0:02:58.5]} 5. Nc3 {[%clk 0:02:56]} 5...
Qc7 {[%clk 0:02:57.9]} 6. Be3 {[%clk 0:02:55.7]} 6... Bb4 {[%clk 0:02:56]} 7.
Qd2 {[%clk 0:02:54.5]} 7... Nf6 {[%clk 0:02:55.4]} 8. f3 {[%clk 0:02:53.9]} 8...
d5 {[%clk 0:02:55.9]} 9. O-O-O {[%clk 0:02:18]} 9... dxe4 {[%clk 0:02:48.9]} 10.
a3 {[%clk 0:02:05]} 10... Bxc3 {[%clk 0:02:40.3]} 11. Qxc3 {[%clk 0:02:03.1]}
11... Qxc3 {[%clk 0:02:38.6]} 12. bxc3 {[%clk 0:02:02.7]} 12... exf3 {[%clk
0:02:20.4]} 13. gxf3 {[%clk 0:02:02.3]} 13... Bd7 {[%clk 0:02:15.7]} 14. Rg1
{[%clk 0:01:59.9]} 14... Nd5 {[%clk 0:02:03.7]} 15. Bd2 {[%clk 0:01:54.9]} 15...
g6 {[%clk 0:01:53.8]} 16. c4 {[%clk 0:01:54.6]} 16... Nb6 {[%clk 0:01:46.9]} 17.
Nb3 {[%clk 0:01:29.8]} 17... Na4 {[%clk 0:01:40.3]} 18. Be3 {[%clk 0:01:21.2]}
18... Nc6 {[%clk 0:01:36.8]} 19. Nc5 {[%clk 0:01:20.6]} 19... Nxc5 {[%clk
0:01:35.3]} 20. Bxc5 {[%clk 0:01:20.3]} 20... Rc8 {[%clk 0:01:31.3]} 21. Bd6
{[%clk 0:01:17.4]} 21... f6 {[%clk 0:01:29]} 22. c5 {[%clk 0:01:11.5]} 22... Kf7
{[%clk 0:01:28.3]} 23. Bc4 {[%clk 0:01:10]} 23... Na5 {[%clk 0:01:17.5]} 24. Ba2
{[%clk 0:01:06.6]} 24... Bb5 {[%clk 0:01:13.8]} 25. Rd4 {[%clk 0:00:59.2]} 25...
Rhe8 {[%clk 0:01:07.4]} 26. Re1 {[%clk 0:00:57.3]} 26... Bc6 {[%clk 0:00:58.5]}
27. Rh4 {[%clk 0:00:53]} 27... h5 {[%clk 0:00:56.5]} 28. f4 {[%clk 0:00:30.9]}
28... Bd5 {[%clk 0:00:55.6]} 29. Bxd5 {[%clk 0:00:26.6]} 29... exd5 {[%clk
0:00:56.5]} 30. Rxe8 {[%clk 0:00:26.5]} 30... Rxe8 {[%clk 0:00:56.4]} 31. f5
{[%clk 0:00:27.1]} 31... Re4 {[%clk 0:00:55.7]} 32. fxg6+ {[%clk 0:00:25.9]}
32... Kxg6 {[%clk 0:00:56.6]} 33. Rh3 {[%clk 0:00:20.3]} 33... Nc4 {[%clk
0:00:56]} 34. a4 {[%clk 0:00:18.4]} 34... Re1# {[%clk 0:00:55.4]} 0-1

[Event "*** Titled Tuesday Blitz"]
[Site "Chess.com"]
[Date "2020.12.29"]
[Round "2"]
[White "biostatistician"]
[Black "MIJuanReyesRosa"]
[Result "1-0"]
[WhiteElo "2609"]
[BlackElo "2061"]
[TimeControl "180+1"]
[EndTime "10:17:10 PST"]
[Termination "biostatistician won on time"]

1. d4 {[%clk 0:03:00.1]} 1... d5 {[%clk 0:02:59.3]} 2. Nf3 {[%clk 0:03:01]} 2...
c5 {[%clk 0:02:57.1]} 3. c4 {[%clk 0:03:01.9]} 3... e6 {[%clk 0:02:55.4]} 4.
cxd5 {[%clk 0:03:01.7]} 4... exd5 {[%clk 0:02:55.2]} 5. Nc3 {[%clk 0:03:02.2]}
5... Nc6 {[%clk 0:02:54.2]} 6. Bg5 {[%clk 0:03:00.7]} 6... f6 {[%clk 0:02:47.3]}
7. Bf4 {[%clk 0:03:00.8]} 7... c4 {[%clk 0:02:36.4]} 8. e4 {[%clk 0:02:59.2]}
8... dxe4 {[%clk 0:02:21.4]} 9. Nxe4 {[%clk 0:03:00.1]} 9... Bb4+ {[%clk
0:02:21]} 10. Bd2 {[%clk 0:02:57.9]} 10... Qd5 {[%clk 0:02:05.2]} 11. Nc3 {[%clk
0:02:54.9]} 11... Bxc3 {[%clk 0:01:47.7]} 12. Bxc3 {[%clk 0:02:54.8]} 12... Bg4
{[%clk 0:01:39.9]} 13. Be2 {[%clk 0:02:54.2]} 13... Nge7 {[%clk 0:01:39.5]} 14.
h3 {[%clk 0:02:53.9]} 14... Bh5 {[%clk 0:01:35.5]} 15. O-O {[%clk 0:02:53.5]}
15... O-O {[%clk 0:01:35]} 16. Re1 {[%clk 0:02:50.7]} 16... Rad8 {[%clk
0:01:30.8]} 17. a4 {[%clk 0:02:44.2]} 17... a6 {[%clk 0:01:15.3]} 18. a5 {[%clk
0:02:41.6]} 18... Bf7 {[%clk 0:00:51]} 19. Nd2 {[%clk 0:02:28.1]} 19... Nxd4
{[%clk 0:00:32]} 20. Bxc4 {[%clk 0:02:27.2]} 20... Qd7 {[%clk 0:00:22.1]} 21.
Bxf7+ {[%clk 0:01:53.7]} 21... Rxf7 {[%clk 0:00:20.5]} 22. Nf3 {[%clk
0:01:52.9]} 22... Nec6 {[%clk 0:00:16.4]} 23. Nxd4 {[%clk 0:01:46.9]} 23... Nxd4
{[%clk 0:00:15.8]} 24. Qd3 {[%clk 0:01:34.2]} 24... Nc6 {[%clk 0:00:10.1]} 25.
Qg3 {[%clk 0:01:31.2]} 25... Qc7 {[%clk 0:00:07.7]} 26. Qg4 {[%clk 0:01:26.8]}
26... Rfd7 {[%clk 0:00:05.6]} 27. Bxf6 {[%clk 0:01:19.6]} 27... Rf8 {[%clk
0:00:04]} 28. Bc3 {[%clk 0:01:15.9]} 28... Rdf7 {[%clk 0:00:01.1]} 29. Re2
{[%clk 0:01:13.5]} 1-0

[Event "*** Titled Tuesday Blitz"]
[Site "Chess.com"]
[Date "2020.12.29"]
[Round "2"]
[White "Region_07"]
[Black "Pantata007"]
[Result "1-0"]
[WhiteElo "2476"]
[BlackElo "2293"]
[TimeControl "180+1"]
[EndTime "10:17:17 PST"]
[Termination "Region_07 won on time"]

1. d4 {[%clk 0:02:59.8]} 1... d5 {[%clk 0:02:59.6]} 2. Bg5 {[%clk 0:02:57.8]}
2... h6 {[%clk 0:02:58.1]} 3. Bf4 {[%clk 0:02:57.4]} 3... c5 {[%clk 0:02:55]} 4.
e3 {[%clk 0:02:56.6]} 4... Nc6 {[%clk 0:02:54.7]} 5. Nf3 {[%clk 0:02:46.6]} 5...
Nf6 {[%clk 0:02:52.8]} 6. c4 {[%clk 0:02:44.7]} 6... cxd4 {[%clk 0:02:49.7]} 7.
exd4 {[%clk 0:02:44.1]} 7... Bg4 {[%clk 0:02:35.6]} 8. Nc3 {[%clk 0:02:32.4]}
8... Bxf3 {[%clk 0:02:29.1]} 9. gxf3 {[%clk 0:02:25.6]} 9... e6 {[%clk
0:02:26.8]} 10. c5 {[%clk 0:02:22.6]} 10... g6 {[%clk 0:02:05.2]} 11. Bb5 {[%clk
0:02:20.5]} 11... Bg7 {[%clk 0:02:04]} 12. Bd6 {[%clk 0:02:20]} 12... Nh5 {[%clk
0:01:40.8]} 13. Qa4 {[%clk 0:02:14.4]} 13... Rc8 {[%clk 0:01:36.6]} 14. O-O-O
{[%clk 0:02:07.6]} 14... a6 {[%clk 0:01:29]} 15. Be2 {[%clk 0:01:55.3]} 15...
Bf8 {[%clk 0:01:14.8]} 16. Be5 {[%clk 0:01:52.3]} 16... Bg7 {[%clk 0:01:15.2]}
17. f4 {[%clk 0:01:52.3]} 17... O-O {[%clk 0:01:09]} 18. Bxh5 {[%clk 0:01:51]}
18... Nxe5 {[%clk 0:01:01]} 19. fxe5 {[%clk 0:01:36.9]} 19... gxh5 {[%clk
0:01:01.9]} 20. Rhg1 {[%clk 0:01:32.6]} 20... Kh8 {[%clk 0:00:54.6]} 21. Rd3
{[%clk 0:01:28.1]} 21... Qh4 {[%clk 0:00:20]} 22. Qd1 {[%clk 0:01:25.3]} 22...
Rg8 {[%clk 0:00:07.1]} 23. Rdg3 {[%clk 0:01:22.8]} 23... b6 {[%clk 0:00:04.7]}
24. cxb6 {[%clk 0:01:13.5]} 24... Rb8 {[%clk 0:00:04.9]} 25. Qd2 {[%clk
0:00:54.3]} 25... Rxb6 {[%clk 0:00:02.7]} 26. Rxg7 {[%clk 0:00:47.7]} 1-0

[Event "*** Titled Tuesday Blitz"]
[Site "Chess.com"]
[Date "2020.12.29"]
[Round "2"]
[White "AIROPITO7"]
[Black "hansen"]
[Result "0-1"]
[WhiteElo "2568"]
[BlackElo "2898"]
[TimeControl "180+1"]
[EndTime "10:17:18 PST"]
[Termination "hansen won by resignation"]

1. c4 {[%clk 0:02:50.8]} 1... e5 {[%clk 0:02:58.9]} 2. Nc3 {[%clk 0:02:51.3]}
2... Nc6 {[%clk 0:02:50.1]} 3. g3 {[%clk 0:02:51.5]} 3... Bb4 {[%clk 0:02:46.7]}
4. Bg2 {[%clk 0:02:51.5]} 4... Bxc3 {[%clk 0:02:46.9]} 5. bxc3 {[%clk
0:02:50.9]} 5... f5 {[%clk 0:02:43.9]} 6. d3 {[%clk 0:02:50.5]} 6... Nf6 {[%clk
0:02:43.8]} 7. Nf3 {[%clk 0:02:50.6]} 7... O-O {[%clk 0:02:43.5]} 8. O-O {[%clk
0:02:50.7]} 8... d6 {[%clk 0:02:44]} 9. Rb1 {[%clk 0:02:06.8]} 9... Qe8 {[%clk
0:02:42.7]} 10. Ne1 {[%clk 0:01:59.8]} 10... b6 {[%clk 0:02:31.1]} 11. Nc2
{[%clk 0:01:54.3]} 11... Bb7 {[%clk 0:02:25.5]} 12. Nb4 {[%clk 0:01:45.2]} 12...
Nd8 {[%clk 0:02:19.2]} 13. Bxb7 {[%clk 0:01:42.2]} 13... Nxb7 {[%clk 0:02:19.3]}
14. Bg5 {[%clk 0:01:42.9]} 14... Nc5 {[%clk 0:01:24.6]} 15. Bxf6 {[%clk
0:01:38.6]} 15... Rxf6 {[%clk 0:01:24.7]} 16. Nd5 {[%clk 0:01:39]} 16... Rf7
{[%clk 0:01:25.3]} 17. d4 {[%clk 0:01:28.3]} 17... Ne4 {[%clk 0:01:20.6]} 18.
Qc2 {[%clk 0:01:25.7]} 18... c6 {[%clk 0:01:14.6]} 19. Nb4 {[%clk 0:01:25.4]}
19... Ng5 {[%clk 0:01:10.5]} 20. h4 {[%clk 0:01:15.7]} 20... Ne4 {[%clk
0:01:06.4]} 21. Kg2 {[%clk 0:01:15.2]} 21... Qe6 {[%clk 0:00:50.7]} 22. d5
{[%clk 0:01:13.5]} 22... cxd5 {[%clk 0:00:50.5]} 23. cxd5 {[%clk 0:01:14.2]}
23... Qg6 {[%clk 0:00:50.1]} 24. Nc6 {[%clk 0:01:09]} 24... Raf8 {[%clk
0:00:41.2]} 25. e3 {[%clk 0:00:45.1]} 25... f4 {[%clk 0:00:19.7]} 26. exf4
{[%clk 0:00:46]} 26... exf4 {[%clk 0:00:19.8]} 27. Rbe1 {[%clk 0:00:43.9]} 27...
fxg3 {[%clk 0:00:19.1]} 28. Qxe4 {[%clk 0:00:36]} 28... gxf2+ {[%clk 0:00:19.2]}
29. Qxg6 {[%clk 0:00:34.3]} 29... fxe1=N+ {[%clk 0:00:19]} 30. Rxe1 {[%clk
0:00:34.3]} 30... hxg6 {[%clk 0:00:18.9]} 0-1

[Event "*** Titled Tuesday Blitz"]
[Site "Chess.com"]
[Date "2020.12.29"]
[Round "2"]
[White "IljaJoke"]
[Black "HrvojeZagreb"]
[Result "1-0"]
[WhiteElo "2443"]
[BlackElo "2228"]
[TimeControl "180+1"]
[EndTime "10:17:21 PST"]
[Termination "IljaJoke won by resignation"]

1. d4 {[%clk 0:03:00.9]} 1... e6 {[%clk 0:02:59.9]} 2. c4 {[%clk 0:02:59.4]}
2... f5 {[%clk 0:02:59.5]} 3. Nf3 {[%clk 0:02:59.7]} 3... Nf6 {[%clk 0:02:59.6]}
4. g3 {[%clk 0:02:58.2]} 4... Be7 {[%clk 0:02:59.1]} 5. Bg2 {[%clk 0:02:58.5]}
5... O-O {[%clk 0:02:58.7]} 6. O-O {[%clk 0:02:59.1]} 6... d6 {[%clk 0:02:58.3]}
7. Nc3 {[%clk 0:02:57.6]} 7... Ne4 {[%clk 0:02:58.3]} 8. Nxe4 {[%clk 0:02:30.4]}
8... fxe4 {[%clk 0:02:59.2]} 9. Ne1 {[%clk 0:02:30.5]} 9... d5 {[%clk
0:02:59.4]} 10. f3 {[%clk 0:02:26.1]} 10... c5 {[%clk 0:02:58.8]} 11. fxe4
{[%clk 0:02:21.9]} 11... Rxf1+ {[%clk 0:02:57.1]} 12. Kxf1 {[%clk 0:02:20.8]}
12... cxd4 {[%clk 0:02:57.4]} 13. exd5 {[%clk 0:02:18]} 13... e5 {[%clk
0:02:51]} 14. e3 {[%clk 0:02:13.4]} 14... Bc5 {[%clk 0:02:37.5]} 15. exd4 {[%clk
0:01:55.7]} 15... Bxd4 {[%clk 0:02:24]} 16. Nf3 {[%clk 0:01:55.8]} 16... Qf6
{[%clk 0:02:23.2]} 17. Qe2 {[%clk 0:01:21.9]} 17... Bg4 {[%clk 0:02:03.1]} 18.
Be3 {[%clk 0:01:21.5]} 18... Nd7 {[%clk 0:01:52.3]} 19. Bxd4 {[%clk 0:01:20.4]}
19... exd4 {[%clk 0:01:53.2]} 20. Kg1 {[%clk 0:01:17.6]} 20... Nc5 {[%clk
0:01:47.2]} 21. b4 {[%clk 0:01:06.8]} 21... d3 {[%clk 0:01:46.5]} 22. Qe5 {[%clk
0:01:07]} 22... Qxe5 {[%clk 0:01:35.9]} 23. Nxe5 {[%clk 0:01:07.9]} 23... Be2
{[%clk 0:01:18.2]} 24. bxc5 {[%clk 0:01:05.7]} 24... d2 {[%clk 0:01:18.6]} 25.
Bf3 {[%clk 0:00:58.7]} 25... d1=Q+ {[%clk 0:01:13.3]} 26. Rxd1 {[%clk
0:00:58.3]} 26... Bxd1 {[%clk 0:01:14]} 27. Bxd1 {[%clk 0:00:58.9]} 27... Rc8
{[%clk 0:01:12.9]} 28. c6 {[%clk 0:00:58.6]} 28... bxc6 {[%clk 0:01:10.9]} 29.
Nxc6 {[%clk 0:00:59.5]} 29... Kf8 {[%clk 0:01:01.3]} 30. Bg4 {[%clk 0:00:58.7]}
30... Rc7 {[%clk 0:00:59.3]} 31. Kf2 {[%clk 0:00:55.8]} 31... a5 {[%clk
0:00:55.3]} 32. Ke3 {[%clk 0:00:54.3]} 32... a4 {[%clk 0:00:50.4]} 33. Kd4
{[%clk 0:00:53.8]} 33... g6 {[%clk 0:00:39.2]} 34. Kc5 {[%clk 0:00:53]} 34... h5
{[%clk 0:00:38.9]} 35. Be6 {[%clk 0:00:52.8]} 35... Rb7 {[%clk 0:00:21]} 36. d6
{[%clk 0:00:50.3]} 36... Ke8 {[%clk 0:00:20.1]} 37. d7+ {[%clk 0:00:49.2]} 37...
Rxd7 {[%clk 0:00:20.3]} 38. Bxd7+ {[%clk 0:00:49.7]} 38... Kxd7 {[%clk
0:00:21.2]} 39. Ne5+ {[%clk 0:00:49.9]} 39... Ke6 {[%clk 0:00:21.2]} 40. Nxg6
{[%clk 0:00:50.8]} 1-0

[Event "*** Titled Tuesday Blitz"]
[Site "Chess.com"]
[Date "2020.12.29"]
[Round "2"]
[White "albi1999"]
[Black "Arjun2002"]
[Result "1-0"]
[WhiteElo "2525"]
[BlackElo "2743"]
[TimeControl "180+1"]
[EndTime "10:17:23 PST"]
[Termination "albi1999 won by resignation"]

1. d4 {[%clk 0:03:00.9]} 1... d5 {[%clk 0:02:56.8]} 2. Nf3 {[%clk 0:02:59.3]}
2... Nf6 {[%clk 0:02:56.5]} 3. c4 {[%clk 0:02:57]} 3... c6 {[%clk 0:02:56.1]} 4.
Nc3 {[%clk 0:02:51.4]} 4... e6 {[%clk 0:02:55.8]} 5. g3 {[%clk 0:02:46]} 5...
dxc4 {[%clk 0:02:53]} 6. Bg2 {[%clk 0:02:45.7]} 6... Nbd7 {[%clk 0:02:52.4]} 7.
a4 {[%clk 0:02:44.8]} 7... Bb4 {[%clk 0:02:49]} 8. O-O {[%clk 0:02:44.5]} 8...
O-O {[%clk 0:02:46.6]} 9. Qc2 {[%clk 0:02:34.7]} 9... Qe7 {[%clk 0:02:44.3]} 10.
a5 {[%clk 0:02:29.5]} 10... h6 {[%clk 0:02:28.2]} 11. Bf4 {[%clk 0:02:03.5]}
11... Nd5 {[%clk 0:02:25]} 12. Bd2 {[%clk 0:02:00.7]} 12... Bd6 {[%clk
0:02:13.1]} 13. Ne4 {[%clk 0:01:57.3]} 13... Bc7 {[%clk 0:02:09.8]} 14. Qxc4
{[%clk 0:01:55.4]} 14... e5 {[%clk 0:02:09.8]} 15. a6 {[%clk 0:01:41.3]} 15...
N7b6 {[%clk 0:01:28.7]} 16. axb7 {[%clk 0:01:40.6]} 16... Bxb7 {[%clk
0:01:27.3]} 17. Qc2 {[%clk 0:01:40.1]} 17... Nd7 {[%clk 0:01:15.3]} 18. dxe5
{[%clk 0:01:33.8]} 18... Nxe5 {[%clk 0:01:11.6]} 19. Nc5 {[%clk 0:01:32.9]}
19... Nxf3+ {[%clk 0:01:06.6]} 20. Bxf3 {[%clk 0:01:32.1]} 20... Bb6 {[%clk
0:01:06.3]} 21. Rfc1 {[%clk 0:01:26.2]} 21... Rac8 {[%clk 0:00:59.2]} 22. Ra4
{[%clk 0:01:05.9]} 22... Ba8 {[%clk 0:00:46.7]} 23. Rg4 {[%clk 0:00:57]} 23...
f5 {[%clk 0:00:38.5]} 24. Rc4 {[%clk 0:00:48.8]} 24... Kh8 {[%clk 0:00:29.3]}
25. Nd3 {[%clk 0:00:42.9]} 25... Nf6 {[%clk 0:00:19.9]} 26. Nf4 {[%clk
0:00:35.4]} 26... Rfd8 {[%clk 0:00:13.1]} 27. Ng6+ {[%clk 0:00:34.3]} 1-0

[Event "*** Titled Tuesday Blitz"]
[Site "Chess.com"]
[Date "2020.12.29"]
[Round "2"]
[White "WPWPWP-2015"]
[Black "JoAttack"]
[Result "1-0"]
[WhiteElo "2432"]
[BlackElo "2210"]
[TimeControl "180+1"]
[EndTime "10:17:23 PST"]
[Termination "WPWPWP-2015 won by resignation"]

1. e4 {[%clk 0:03:00.9]} 1... c5 {[%clk 0:02:58.7]} 2. Nc3 {[%clk 0:02:58]} 2...
d6 {[%clk 0:02:57.7]} 3. Nf3 {[%clk 0:02:57.2]} 3... Nc6 {[%clk 0:02:56.7]} 4.
d4 {[%clk 0:02:57]} 4... cxd4 {[%clk 0:02:56]} 5. Nxd4 {[%clk 0:02:57.9]} 5...
Bd7 {[%clk 0:02:54.7]} 6. Be2 {[%clk 0:02:55.7]} 6... g6 {[%clk 0:02:53.7]} 7.
Be3 {[%clk 0:02:52.9]} 7... Bg7 {[%clk 0:02:53.3]} 8. O-O {[%clk 0:02:52.7]}
8... Nf6 {[%clk 0:02:52.5]} 9. f4 {[%clk 0:02:52.3]} 9... O-O {[%clk 0:02:49.8]}
10. h3 {[%clk 0:02:51.4]} 10... a6 {[%clk 0:02:47.8]} 11. Qd2 {[%clk 0:02:49.7]}
11... Qc7 {[%clk 0:02:41.3]} 12. Rae1 {[%clk 0:02:48.1]} 12... e5 {[%clk
0:02:37.3]} 13. Nf3 {[%clk 0:02:43.6]} 13... Rad8 {[%clk 0:02:25.7]} 14. f5
{[%clk 0:02:35.6]} 14... Bc8 {[%clk 0:02:19]} 15. Bg5 {[%clk 0:02:34.1]} 15...
Ne7 {[%clk 0:02:10.6]} 16. Bd3 {[%clk 0:02:28.6]} 16... d5 {[%clk 0:01:58.1]}
17. exd5 {[%clk 0:02:27.2]} 17... Nexd5 {[%clk 0:01:56.8]} 18. fxg6 {[%clk
0:02:22.6]} 18... hxg6 {[%clk 0:01:54.1]} 19. Nxe5 {[%clk 0:02:19.4]} 19... Qc5+
{[%clk 0:01:34.2]} 20. Qf2 {[%clk 0:01:58.6]} 20... Qxf2+ {[%clk 0:01:27.8]} 21.
Rxf2 {[%clk 0:01:56.9]} 21... Nxc3 {[%clk 0:01:24.6]} 22. Bxf6 {[%clk
0:01:43.9]} 22... Bxf6 {[%clk 0:01:21.7]} 23. Rxf6 {[%clk 0:01:40.2]} 23... Nd5
{[%clk 0:01:20.6]} 24. Rff1 {[%clk 0:01:37.9]} 24... Be6 {[%clk 0:01:19.5]} 25.
a3 {[%clk 0:01:27.9]} 25... Rd6 {[%clk 0:01:16.5]} 26. Nc4 {[%clk 0:01:24]}
26... Rc6 {[%clk 0:01:10.6]} 27. Ne5 {[%clk 0:01:21.4]} 27... Rd6 {[%clk
0:01:08.6]} 28. Ng4 {[%clk 0:01:17]} 28... Rfd8 {[%clk 0:01:02.2]} 29. Nf6+
{[%clk 0:01:04.5]} 29... Kg7 {[%clk 0:00:58.8]} 30. Ne4 {[%clk 0:01:02.9]} 30...
Rb6 {[%clk 0:00:54]} 31. Ng5 {[%clk 0:00:59.3]} 31... Rdd6 {[%clk 0:00:39.9]}
32. c4 {[%clk 0:00:50]} 32... Rb3 {[%clk 0:00:17.3]} 33. cxd5 {[%clk 0:00:47.4]}
33... Rxd3 {[%clk 0:00:16.8]} 34. dxe6 {[%clk 0:00:45]} 1-0

[Event "*** Titled Tuesday Blitz"]
[Site "Chess.com"]
[Date "2020.12.29"]
[Round "2"]
[White "barbara25"]
[Black "Alexandr_Kholin"]
[Result "0-1"]
[WhiteElo "2275"]
[BlackElo "2551"]
[TimeControl "180+1"]
[EndTime "10:17:24 PST"]
[Termination "Alexandr_Kholin won by resignation"]

1. e4 {[%clk 0:03:00.9]} 1... c6 {[%clk 0:02:59.6]} 2. d4 {[%clk 0:03:00.4]}
2... d5 {[%clk 0:02:58.3]} 3. f3 {[%clk 0:02:59.2]} 3... e6 {[%clk 0:02:56.9]}
4. Nc3 {[%clk 0:02:58.7]} 4... Bb4 {[%clk 0:02:54.8]} 5. a3 {[%clk 0:02:57.8]}
5... Ba5 {[%clk 0:02:54.3]} 6. Ne2 {[%clk 0:02:56.5]} 6... Nd7 {[%clk
0:02:53.6]} 7. Ng3 {[%clk 0:02:56.5]} 7... Ne7 {[%clk 0:02:51.9]} 8. Be2 {[%clk
0:02:56.9]} 8... O-O {[%clk 0:02:51]} 9. O-O {[%clk 0:02:57.1]} 9... Bc7 {[%clk
0:02:47.9]} 10. e5 {[%clk 0:02:57.2]} 10... c5 {[%clk 0:02:45.2]} 11. f4 {[%clk
0:02:57.6]} 11... cxd4 {[%clk 0:02:44.7]} 12. Na2 {[%clk 0:02:57.9]} 12... Nc6
{[%clk 0:02:41.1]} 13. Bd3 {[%clk 0:02:55.7]} 13... f5 {[%clk 0:02:38.6]} 14.
exf6 {[%clk 0:02:51.5]} 14... Qxf6 {[%clk 0:02:37.9]} 15. f5 {[%clk 0:02:49.5]}
15... Bxg3 {[%clk 0:02:30.1]} 16. hxg3 {[%clk 0:02:47.8]} 16... e5 {[%clk
0:02:30.3]} 17. Qg4 {[%clk 0:02:47.6]} 17... e4 {[%clk 0:02:28.1]} 18. Bb5
{[%clk 0:02:47.3]} 18... Nde5 {[%clk 0:02:26.1]} 19. Qh3 {[%clk 0:02:42.6]}
19... Bxf5 {[%clk 0:02:24.9]} 20. g4 {[%clk 0:02:43]} 20... Nxg4 {[%clk
0:02:12.3]} 21. Qg3 {[%clk 0:02:38.3]} 21... Nce5 {[%clk 0:02:05.8]} 22. Bf4
{[%clk 0:02:36.8]} 22... Qe6 {[%clk 0:02:03.8]} 23. Be2 {[%clk 0:02:35.7]} 23...
Rf7 {[%clk 0:01:59.7]} 24. Nb4 {[%clk 0:02:32.2]} 24... Raf8 {[%clk 0:01:57.6]}
25. Rad1 {[%clk 0:02:24]} 25... a5 {[%clk 0:01:54.1]} 26. Na2 {[%clk 0:02:23]}
26... d3 {[%clk 0:01:54.2]} 27. cxd3 {[%clk 0:02:22.8]} 27... exd3 {[%clk
0:01:53.9]} 28. Bxg4 {[%clk 0:02:13.5]} 28... Nxg4 {[%clk 0:01:52.4]} 29. Nc3
{[%clk 0:02:11.6]} 29... Rf6 {[%clk 0:01:47.1]} 30. Na4 {[%clk 0:01:57.1]} 30...
Qc6 {[%clk 0:01:42.4]} 31. b3 {[%clk 0:01:55.1]} 31... b5 {[%clk 0:01:41.4]} 32.
Nb2 {[%clk 0:01:54.1]} 32... Qc5+ {[%clk 0:01:39.9]} 33. Kh1 {[%clk 0:01:54.1]}
33... Qxa3 {[%clk 0:01:28.1]} 34. Nxd3 {[%clk 0:01:24]} 34... Qxb3 {[%clk
0:01:25.8]} 35. Rfe1 {[%clk 0:01:12.3]} 35... Bxd3 {[%clk 0:01:20.3]} 36. Rxd3
{[%clk 0:01:05.8]} 36... Qc4 {[%clk 0:01:01.7]} 37. Qxg4 {[%clk 0:00:46.2]}
37... Qxd3 {[%clk 0:00:59.1]} 38. Re7 {[%clk 0:00:44.2]} 38... Rg6 {[%clk
0:00:50.2]} 0-1

[Event "*** Titled Tuesday Blitz"]
[Site "Chess.com"]
[Date "2020.12.29"]
[Round "2"]
[White "J36225"]
[Black "The_filthy"]
[Result "1/2-1/2"]
[WhiteElo "2460"]
[BlackElo "2298"]
[TimeControl "180+1"]
[EndTime "10:17:24 PST"]
[Termination "Game drawn by repetition"]

1. e4 {[%clk 0:03:00.9]} 1... e6 {[%clk 0:03:00.4]} 2. d4 {[%clk 0:03:00.3]}
2... d5 {[%clk 0:03:00.7]} 3. exd5 {[%clk 0:03:00.9]} 3... exd5 {[%clk
0:03:00.7]} 4. Bd3 {[%clk 0:03:01.3]} 4... c6 {[%clk 0:03:01]} 5. Ne2 {[%clk
0:02:58.8]} 5... Bd6 {[%clk 0:03:01.4]} 6. O-O {[%clk 0:02:58.5]} 6... Ne7
{[%clk 0:03:02]} 7. Bf4 {[%clk 0:02:57.6]} 7... Qc7 {[%clk 0:03:01.5]} 8. Qd2
{[%clk 0:02:53.2]} 8... Bg4 {[%clk 0:02:53.3]} 9. f3 {[%clk 0:02:52.3]} 9... Bf5
{[%clk 0:02:51.9]} 10. Bxd6 {[%clk 0:02:50.9]} 10... Qxd6 {[%clk 0:02:51.8]} 11.
Re1 {[%clk 0:02:48.8]} 11... O-O {[%clk 0:02:51.1]} 12. Ng3 {[%clk 0:02:41.4]}
12... Bxd3 {[%clk 0:02:47.2]} 13. Qxd3 {[%clk 0:02:40.9]} 13... Nd7 {[%clk
0:02:45.8]} 14. c3 {[%clk 0:02:38.4]} 14... c5 {[%clk 0:02:39.7]} 15. Nd2 {[%clk
0:02:23.4]} 15... Rfe8 {[%clk 0:02:32]} 16. dxc5 {[%clk 0:02:11.9]} 16... Nxc5
{[%clk 0:02:29]} 17. Qe3 {[%clk 0:02:06.9]} 17... Ne6 {[%clk 0:02:23.6]} 18. Nb3
{[%clk 0:02:02]} 18... a5 {[%clk 0:01:56.6]} 19. Rad1 {[%clk 0:01:56.4]} 19...
a4 {[%clk 0:01:55.1]} 20. Nd4 {[%clk 0:01:55.7]} 20... Nxd4 {[%clk 0:01:55.6]}
21. Qxd4 {[%clk 0:01:55.3]} 21... a3 {[%clk 0:01:48]} 22. b3 {[%clk 0:01:54.6]}
22... Rad8 {[%clk 0:01:45.6]} 23. c4 {[%clk 0:01:51.3]} 23... Qb8 {[%clk
0:01:33.2]} 24. cxd5 {[%clk 0:01:26.9]} 24... Rxd5 {[%clk 0:01:27.7]} 25. Qe3
{[%clk 0:01:14]} 25... Rxd1 {[%clk 0:01:24]} 26. Rxd1 {[%clk 0:01:13.4]} 26...
Nf5 {[%clk 0:01:18.6]} 27. Qf2 {[%clk 0:01:06.9]} 27... Nxg3 {[%clk 0:01:17.6]}
28. hxg3 {[%clk 0:01:06.6]} 28... Qe5 {[%clk 0:01:10.5]} 29. Qd4 {[%clk
0:01:03]} 29... Qe2 {[%clk 0:01:06.7]} 30. Qd2 {[%clk 0:00:56.4]} 30... Qe7
{[%clk 0:00:57.2]} 31. Kf2 {[%clk 0:00:54.9]} 31... h6 {[%clk 0:00:54.8]} 32.
Re1 {[%clk 0:00:45.8]} 32... Qc5+ {[%clk 0:00:54.5]} 33. Kf1 {[%clk 0:00:45.2]}
33... Rxe1+ {[%clk 0:00:44.8]} 34. Qxe1 {[%clk 0:00:44.6]} 34... Qc2 {[%clk
0:00:44.1]} 35. Qe2 {[%clk 0:00:44.1]} 35... Qb1+ {[%clk 0:00:38.8]} 36. Kf2
{[%clk 0:00:43.4]} 36... Qb2 {[%clk 0:00:36.3]} 37. g4 {[%clk 0:00:42.5]} 37...
g6 {[%clk 0:00:33.3]} 38. Kf1 {[%clk 0:00:41.6]} 38... Qc1+ {[%clk 0:00:33.1]}
39. Kf2 {[%clk 0:00:41.2]} 39... Qb2 {[%clk 0:00:33]} 40. Kf1 {[%clk 0:00:40.4]}
40... Qc1+ {[%clk 0:00:33.2]} 41. Kf2 {[%clk 0:00:38.7]} 41... Qb2 {[%clk
0:00:33.4]} 1/2-1/2